fUST/lending_fUST_20250102
["ID","MTS","AMOUNT","RATE_DAILY","PERIOD"]
[347455550,1735830645288,-610.89,0.00021917,3]
[347455551,1735830645297,-500.0,0.00021917,3]
[347455552,1735830645307,-754.88,0.00021917,3]
[347455553,1735830645316,-1119.38,0.00021917,3]
[347455554,1735830645325,-9374.38,0.00021917,3]
[347455555,1735830645336,-1612.95,0.00021917,3]
[347455556,1735830645348,-500.0,0.00021917,3]
[347455557,1735830645357,-500.0,0.00021917,3]
[347455558,1735830645367,-500.0,0.00021917,3]
[347455559,1735830645376,-151.0,0.00021985,7]
[347455560,1735830645386,-151.0,0.00021985,7]
[347455561,1735830645395,-162.0,0.00022,2]
[347455562,1735830645404,-151.0,0.00022,7]
[347455563,1735830645413,-162.772744,0.00022,7]
[347455564,1735830645425,-346.886108,0.00022,7]
[347455565,1735830645434,-346.886108,0.00022,7]
[347455566,1735830645443,-201.0,0.00022,2]
[347455567,1735830645452,-267.0,0.00022,2]
[347455568,1735830645462,-150.0,0.00022,2]
[347455569,1735830645472,-267.0,0.00022,2]
[347455570,1735830645482,-344.48583,0.00022,7]
[347455571,1735830645491,-344.48583,0.00022,7]
[347455572,1735830645501,-154.638789,0.00022,7]
[347455573,1735830645510,-154.638789,0.00022,7]
[347455574,1735830645519,-7610.32247717,0.0002201,2]
[347455575,1735830645529,-5000.0,0.0002201,2]
[347455576,1735830645538,-5000.0,0.0002201,2]
[347455577,1735830645548,-5000.0,0.0002201,2]
[347455578,1735830645557,-163.141109,0.0002201,7]
[347455579,1735830645566,-151.0,0.0002201,7]
[347455580,1735830645576,-197.418363,0.00022055,2]
[347455581,1735830645587,-278.20905624,0.00022058,2]
[347455582,1735830645596,-151.0,0.00022191,7]
[347455583,1735830645605,-151.0,0.00022191,7]
[347455584,1735830645615,-1846.99,0.00022191,3]
[347455585,1735830645625,-428.523351,0.00022191,7]
[347455586,1735830645634,-885.22,0.00022191,3]
[347455587,1735830645643,-428.523351,0.00022191,7]
[347455588,1735830645652,-500.0,0.00022191,3]
[347455589,1735830645662,-500.0,0.00022191,3]
[347455590,1735830645671,-1719.17,0.00022191,3]
[347455591,1735830645681,-500.0,0.00022191,3]
[347455592,1735830645690,-1101.87,0.00022191,3]
[347455593,1735830645700,-500.0,0.00022191,3]
[347455594,1735830645709,-500.0,0.00022191,2]
[347455595,1735830645720,-547.15,0.00022191,3]
[347455596,1735830645729,-500.0,0.00022191,3]
[347455597,1735830645738,-648.92,0.00022191,3]
[347455598,1735830645747,-610.89,0.00022191,3]
[347455599,1735830645757,-500.0,0.00022191,3]
[347455600,1735830645766,-754.88,0.00022191,3]
[347455601,1735830645776,-1119.38,0.00022191,3]
[347455602,1735830645785,-9374.38,0.00022191,3]
[347455603,1735830645795,-151.0,0.00022191,7]
[347455604,1735830645804,-151.0,0.00022191,7]
[347455605,1735830645814,-1612.95,0.00022191,3]
[347455606,1735830645823,-500.0,0.00022191,3]
[347455607,1735830645833,-500.0,0.00022191,3]
[347455608,1735830645842,-201.0,0.00022192,2]
[347455609,1735830645851,-278.26311,0.000222,2]
[347455610,1735830645860,-1000.0,0.00022243,2]
[347455611,1735830645870,-278.20905624,0.00022268,2]
[347455612,1735830645879,-1000.0,0.00022276,2]
[347455613,1735830645889,-600.0,0.00022294,2]
[347455614,1735830645899,-151.0,0.000223,8]
[347455615,1735830645909,-151.0,0.000223,5]
[347455616,1735830645920,-151.0,0.00022324,7]
[347455617,1735830645929,-1000.0,0.00022334,2]
[347455618,1735830645939,-5434.91984304,0.00022382,2]
[347455619,1735830645947,-6105.27696587,0.00022404,7]
[347455620,1735830645957,-1000.0,0.00022407,2]
[347455621,1735830645967,-346.886108,0.00022426,7]
[347455622,1735830645977,-346.886108,0.00022426,7]
[347455623,1735830645986,-852.40072884,0.00022432,2]
[347455624,1735830645996,-151.0,0.00022455,7]
[347455626,1735830646006,-5744.8380633,0.00022461,14]
[347455628,1735830646015,-9897.49724632,0.00022461,14]
[347455630,1735830646026,-151.0,0.00022461,7]
[347455631,1735830646035,-250.867836,0.00022461,7]
[347455632,1735830646045,-192.367017,0.00022465,7]
[347455633,1735830646055,-192.367017,0.00022465,7]
[347455634,1735830646064,-1846.99,0.00022465,3]
[347455635,1735830646074,-885.22,0.00022465,3]
[347455636,1735830646084,-500.0,0.00022465,3]
[347455637,1735830646093,-500.0,0.00022465,3]
[347455638,1735830646103,-1719.17,0.00022465,3]
[347455639,1735830646112,-247.16321018,0.00022465,3]
[347455640,1735830646122,-1101.87,0.00022465,3]
[347455641,1735830646131,-500.0,0.00022465,3]
[347455642,1735830646141,-500.0,0.00022465,2]
[347455643,1735830646151,-547.15,0.00022465,3]
[347455644,1735830646161,-500.0,0.00022465,3]
[347455645,1735830646170,-610.89,0.00022465,3]
[347455646,1735830646179,-500.0,0.00022465,3]
[347455647,1735830646189,-754.88,0.00022465,3]
[347455648,1735830646198,-1119.38,0.00022465,3]
[347455649,1735830646207,-9374.38,0.00022465,3]
[347455650,1735830646217,-500.0,0.00022465,3]
[347455651,1735830646227,-1612.95,0.00022465,3]
[347455652,1735830646237,-500.0,0.00022465,3]
[347455653,1735830646246,-1000.0,0.00022467,2]
[347455654,1735830646255,-1000.0,0.00022467,2]
[347455655,1735830646265,-1000.0,0.00022471,2]
[347455656,1735830646275,-1000.0,0.00022475,2]
[347455657,1735830646284,-1000.0,0.00022478,2]
[347455658,1735830646294,-278.20905624,0.00022479,2]
[347455659,1735830646303,-1000.0,0.00022489,2]
[347455660,1735830646313,-313.0,0.000225,10]
[347455661,1735830646322,-7714.37469928,0.00022504,2]
[347455662,1735830646334,-151.0,0.00022577,7]
[347455663,1735830646346,-151.0,0.00022577,7]
[347455664,1735830646355,-151.0,0.00022577,7]
[347455665,1735830646364,-346.886108,0.00022577,7]
[347455666,1735830646374,-346.886108,0.00022577,7]
[347455667,1735830646384,-346.886108,0.00022577,7]
[347455668,1735830646393,-346.886108,0.00022577,7]
[347455669,1735830646403,-346.886108,0.00022577,7]
[347455670,1735830646412,-346.886108,0.00022577,7]
[347455671,1735830646426,-346.886108,0.00022577,7]
[347455672,1735830646436,-346.886108,0.00022577,7]
[347455673,1735830646447,-346.886108,0.00022577,7]
[347455674,1735830646456,-346.886116,0.00022577,7]
[347455675,1735830646466,-344.48583,0.00022577,7]
[347455676,1735830646475,-344.48583,0.00022577,7]
[347455677,1735830646484,-154.638789,0.00022577,7]
[347455678,1735830646494,-154.638789,0.00022577,7]
[347455679,1735830646504,-3670.49702509,0.0002258,7]
[347455680,1735830646513,-199.34226639,0.00022587,2]
[347455681,1735830646523,-75.71526842,0.00022591,7]
[347455682,1735830646532,-314.673616,0.00022591,7]
[347455683,1735830646541,-314.673616,0.00022591,7]
[347455684,1735830646551,-314.673616,0.00022591,7]
[347455685,1735830646560,-314.673616,0.00022591,7]
[347455686,1735830646569,-314.673616,0.00022591,7]
[347455687,1735830646579,-314.673616,0.00022591,7]
[347455688,1735830646594,-314.67362,0.00022591,7]
[347455689,1735830646603,-151.0,0.00022591,7]
[347455690,1735830646613,-151.0,0.00022591,7]
[347455691,1735830646622,-151.0,0.00022591,7]
[347455692,1735830646631,-151.0,0.00022591,7]
[347455693,1735830646641,-151.0,0.00022591,7]
[347455694,1735830646651,-151.0,0.00022591,7]
[347455695,1735830646660,-278.90573611,0.00022591,7]
[347455696,1735830646670,-241.357194,0.00022591,2]
[347455697,1735830646679,-151.0,0.00022591,7]
[347455698,1735830646689,-500.0,0.00022591,7]
[347455700,1735830646704,-150.15,0.00022591,7]
[347455702,1735830646713,-150.26356785,0.00022591,7]
[347455704,1735830646723,-150.43478341,0.00022591,7]
[347455706,1735830646732,-150.15,0.00022591,7]
[347455708,1735830646742,-151.355115,0.00022591,7]
[347455710,1735830646751,-500.0,0.00022591,7]
[347455711,1735830646760,-163.27063539,0.00022591,7]
[347455713,1735830646770,-500.0,0.00022591,2]
[347455715,1735830646779,-173.00039265,0.00022591,7]
[347455716,1735830646788,-155.33537037,0.00022591,7]
[347455717,1735830646797,-150.15,0.00022591,7]
[347455718,1735830646806,-199.64,0.00022591,7]
[347455720,1735830646818,-500.0,0.00022591,7]
[347455722,1735830646828,-150.15,0.00022591,7]
[347455724,1735830646843,-150.15,0.00022591,2]
[347455725,1735830646853,-150.15,0.00022591,7]
[347455726,1735830646862,-163.80954025,0.00022591,7]
[347455728,1735830646871,-500.0,0.00022591,7]
[347455730,1735830646881,-849.87,0.00022591,7]
[347455731,1735830646890,-150.15,0.00022591,2]
[347455732,1735830646899,-500.0,0.00022591,7]
[347455734,1735830646909,-500.0,0.00022591,7]
[347455736,1735830646918,-151.645548,0.00022592,7]
[347455738,1735830646927,-151.645548,0.00022592,7]
[347455739,1735830646936,-151.645548,0.00022592,7]
[347455741,1735830646946,-151.645548,0.00022592,7]
[347455742,1735830646955,-151.645548,0.00022592,7]
[347455743,1735830646965,-151.645548,0.00022592,7]
[347455744,1735830646974,-151.645548,0.00022592,7]
[347455745,1735830646983,-151.645548,0.00022592,7]
[347455746,1735830646992,-151.645548,0.00022592,7]
[347455747,1735830647001,-151.645548,0.00022592,7]
[347455748,1735830647010,-151.645548,0.00022592,7]
[347455749,1735830647019,-151.645548,0.00022592,7]
[347455750,1735830647029,-151.645548,0.00022592,7]
[347455751,1735830647039,-151.645545,0.00022592,7]
[347455753,1735830647049,-179.110249,0.00022592,7]
[347455754,1735830647058,-179.110249,0.00022592,7]
[347455756,1735830647067,-179.110249,0.00022592,7]
[347455758,1735830647076,-179.110249,0.00022592,7]
[347455760,1735830647094,-179.110249,0.00022592,7]
[347455762,1735830647104,-179.110249,0.00022592,7]
[347455763,1735830647113,-179.110249,0.00022592,7]
[347455764,1735830647123,-179.110249,0.00022592,7]
[347455766,1735830647132,-179.110249,0.00022592,7]
[347455767,1735830647141,-179.110249,0.00022592,7]
[347455768,1735830647151,-179.110249,0.00022592,7]
[347455769,1735830647160,-179.110249,0.00022592,7]
[347455770,1735830647170,-179.110249,0.00022592,7]
[347455771,1735830647180,-179.110251,0.00022592,7]
[347455772,1735830647189,-3670.49702509,0.000226,7]
[347455773,1735830647199,-4116.86849083,0.000226,10]
[347455774,1735830647208,-153.2971299,0.00022603,2]
[347455775,1735830647217,-254.9383138,0.00022603,2]
[347455776,1735830647227,-411.1399732,0.00022603,2]
[347455777,1735830647235,-151.0,0.00022603,7]
[347455778,1735830647245,-151.0,0.00022603,7]
[347455779,1735830647254,-12713.03412544,0.00022603,2]
[347455780,1735830647263,-94684.26161488,0.00022603,2]
[347455781,1735830647273,-558434.9440968,0.00022604,10]
[347455782,1735830647295,-5846.40807028,0.00022604,10]
[347455783,1735830647306,-3349.99999999,0.00022604,10]
[347455795,1735830913477,169.767954,0.00013973,2]
[347455869,1735831832982,-2712.4816541,0.00016388,2]
[347455870,1735831832992,-2712.4816541,0.00016554,2]
[347455871,1735831833001,-2712.4816541,0.0001776,2]
[347455873,1735831833010,-356.29239033,0.00018196,2]
[347455876,1735831833038,-704.94712407,0.00018196,2]
[347455877,1735831833047,-300.0,0.00018765,2]
[347455878,1735831833057,-121184.01456121,0.00018765,2]
[347455897,1735831838778,-173.23072654,0.00018479,2]
[347455898,1735831838788,-173.23072654,0.00018666,2]
[347455899,1735831838800,-500.0,0.00018764,2]
[347455900,1735831838810,-500.0,0.00018764,2]
[347455901,1735831838819,-500.0,0.00018764,2]
[347455902,1735831838828,-500.0,0.00018764,2]
[347455903,1735831838838,-500.0,0.00018764,2]
[347455904,1735831838847,-176.61304596,0.00018764,2]
[347455905,1735831838858,-500.0,0.00018764,2]
[347455906,1735831838869,-447.73658858,0.00018764,2]
[347455907,1735831838878,-500.0,0.00018764,2]
[347455908,1735831838888,-500.0,0.00018764,2]
[347455909,1735831838898,-500.0,0.00018764,2]
[347455910,1735831838907,-500.0,0.00018764,2]
[347455911,1735831838917,-500.0,0.00018764,2]
[347455912,1735831838927,-500.0,0.00018764,2]
[347455913,1735831838936,-500.0,0.00018764,2]
[347455914,1735831838945,-500.0,0.00018764,2]
[347455915,1735831838954,-500.0,0.00018764,2]
[347455916,1735831838964,-500.0,0.00018764,2]
[347455918,1735831838974,-500.0,0.00018764,2]
[347455920,1735831838984,-500.0,0.00018764,2]
[347455922,1735831838994,-345.12968111,0.00018764,2]
[347455923,1735831839003,-500.0,0.00018764,2]
[347455924,1735831839013,-500.0,0.00018764,2]
[347455925,1735831839022,-500.0,0.00018764,2]
[347455926,1735831839032,-500.0,0.00018764,2]
[347455927,1735831839042,-500.0,0.00018764,2]
[347455928,1735831839051,-500.0,0.00018764,2]
[347455929,1735831839060,-500.0,0.00018764,2]
[347455930,1735831839069,-500.0,0.00018764,2]
[347455931,1735831839079,-500.0,0.00018764,2]
[347455932,1735831839089,-500.0,0.00018764,2]
[347455933,1735831839099,-500.0,0.00018764,2]
[347455934,1735831839109,-500.0,0.00018764,2]
[347455935,1735831839118,-500.0,0.00018764,2]
[347455936,1735831839127,-500.0,0.00018764,2]
[347455937,1735831839137,-500.0,0.00018764,2]
[347455938,1735831839274,-500.0,0.00018764,2]
[347455939,1735831839286,-500.0,0.00018764,2]
[347455940,1735831839298,-500.0,0.00018764,2]
[347455941,1735831839308,-500.0,0.00018764,2]
[347455942,1735831839318,-500.0,0.00018764,2]
[347455943,1735831839328,-500.0,0.00018764,2]
[347455944,1735831839337,-11818.63351452,0.00018765,2]
[347455945,1735831839349,-598.35192427,0.00018765,2]
[347455946,1735831839359,-2702.73909635,0.00018766,2]
[347455947,1735831839368,-154.05,0.00018774,2]
[347455948,1735831839378,-161.22,0.00018783,2]
[347455949,1735831839388,-150.0,0.000189,2]
[347455950,1735831839397,-438.82663102,0.00019173,2]
[347455951,1735831839407,-504.74299202,0.00019178,2]
[347455952,1735831839416,-506.19940868,0.00019178,2]
[347455953,1735831839426,-500.0,0.00019178,2]
[347455954,1735831839436,-200.8409713,0.00019178,2]
[347455955,1735831839445,-188.0,0.00019178,2]
[347455956,1735831839455,-500.0,0.00019178,2]
[347455957,1735831839466,-500.0,0.00019178,2]
[347455958,1735831839475,-500.0,0.00019178,2]
[347455959,1735831839485,-500.0,0.00019178,2]
[347455960,1735831839495,-500.0,0.00019178,2]
[347455961,1735831839505,-500.0,0.00019178,2]
[347455962,1735831839515,-500.0,0.00019178,2]
[347455963,1735831839524,-500.0,0.00019178,2]
[347455964,1735831839533,-500.0,0.00019178,2]
[347455965,1735831839545,-500.0,0.00019178,2]
[347455966,1735831839554,-500.0,0.00019178,2]
[347455967,1735831839564,-568.26602591,0.00019178,2]
[347455968,1735831839573,-500.0,0.00019178,2]
[347455969,1735831839582,-500.0,0.00019178,2]
[347455970,1735831839592,-244.0275391,0.00019178,2]
[347455971,1735831839602,-500.0,0.00019178,2]
[347455972,1735831839612,-500.0,0.00019178,2]
[347455973,1735831839622,-500.0,0.00019178,2]
[347455974,1735831839631,-468.50519131,0.00019178,2]
[347455975,1735831839641,-500.0,0.00019178,2]
[347455976,1735831839650,-500.0,0.00019178,2]
[347455977,1735831839660,-500.0,0.00019178,2]
[347455978,1735831839669,-529.34,0.00019178,2]
[347455979,1735831839679,-506.11163549,0.00019178,2]
[347455980,1735831839690,-619.23,0.00019178,2]
[347455981,1735831839699,-500.0,0.00019178,2]
[347455982,1735831839709,-500.0,0.00019178,2]
[347455983,1735831839718,-500.0,0.00019178,2]
[347455984,1735831839729,-500.0,0.00019178,2]
[347455985,1735831839739,-500.0,0.00019178,2]
[347455986,1735831839748,-500.0,0.00019178,2]
[347455987,1735831839758,-500.0,0.00019178,2]
[347455988,1735831839769,-506.86012929,0.00019178,2]
[347455989,1735831839779,-500.0,0.00019178,2]
[347455990,1735831839788,-500.0,0.00019178,2]
[347455991,1735831839799,-500.0,0.00019178,2]
[347455992,1735831839809,-500.0,0.00019178,2]
[347455993,1735831839818,-500.0,0.00019178,2]
[347455994,1735831839828,-500.0,0.00019178,2]
[347455995,1735831839838,-500.0,0.00019178,2]
[347455996,1735831839848,-500.0,0.00019178,2]
[347455997,1735831839859,-479.20874602,0.00019178,2]
[347455998,1735831839868,-500.0,0.00019178,2]
[347455999,1735831839878,-500.0,0.00019178,2]
[347456000,1735831839887,-306.17724798,0.00019178,2]
[347456001,1735831839896,-500.0,0.00019178,2]
[347456002,1735831839906,-500.0,0.00019178,2]
[347456003,1735831839916,-500.0,0.00019178,2]
[347456004,1735831839926,-500.0,0.00019178,2]
[347456005,1735831839937,-500.0,0.00019178,2]
[347456006,1735831839946,-500.0,0.00019178,2]
[347456007,1735831839956,-500.0,0.00019178,2]
[347456008,1735831839965,-500.0,0.00019178,2]
[347456009,1735831839975,-500.0,0.00019178,2]
[347456010,1735831839985,-500.0,0.00019178,2]
[347456011,1735831839995,-500.0,0.00019178,2]
[347456012,1735831840005,-500.0,0.00019178,2]
[347456013,1735831840015,-500.0,0.00019178,2]
[347456014,1735831840025,-500.0,0.00019178,2]
[347456015,1735831840036,-504.4650144,0.00019178,2]
[347456016,1735831840051,-500.0,0.00019178,2]
[347456017,1735831840061,-503.0050414,0.00019178,2]
[347456018,1735831840072,-553.14,0.00019178,2]
[347456019,1735831840082,-500.0,0.00019178,2]
[347456020,1735831840092,-500.0,0.00019178,2]
[347456021,1735831840102,-500.0,0.00019178,2]
[347456022,1735831840112,-500.0,0.00019178,2]
[347456023,1735831840121,-500.0,0.00019178,2]
[347456024,1735831840131,-500.0,0.00019178,2]
[347456025,1735831840140,-500.0,0.00019178,2]
[347456026,1735831840150,-500.0,0.00019178,2]
[347456027,1735831840159,-500.0,0.00019178,2]
[347456028,1735831840169,-500.0,0.00019178,2]
[347456029,1735831840179,-501.32887345,0.00019178,2]
[347456030,1735831840189,-500.0,0.00019178,2]
[347456031,1735831840198,-592.23,0.00019178,2]
[347456032,1735831840208,-500.0,0.00019178,2]
[347456033,1735831840218,-500.0,0.00019178,2]
[347456034,1735831840227,-553.4616221,0.00019178,2]
[347456035,1735831840238,-500.0,0.00019178,2]
[347456036,1735831840247,-583.93453435,0.00019178,2]
[347456037,1735831840257,-500.0,0.00019178,2]
[347456038,1735831840267,-500.0,0.00019178,2]
[347456039,1735831840278,-500.0,0.00019178,2]
[347456040,1735831840287,-500.0,0.00019178,2]
[347456041,1735831840302,-500.0,0.00019178,2]
[347456042,1735831840311,-500.0,0.00019178,2]
[347456043,1735831840321,-500.0,0.00019178,2]
[347456044,1735831840330,-500.0,0.00019178,2]
[347456045,1735831840340,-500.0,0.00019178,2]
[347456046,1735831840350,-500.0,0.00019178,2]
[347456047,1735831840359,-500.0,0.00019178,2]
[347456048,1735831840369,-500.0,0.00019178,2]
[347456049,1735831840380,-500.0,0.00019178,2]
[347456051,1735831840389,-626.35,0.00019178,2]
[347456053,1735831840400,-500.0,0.00019178,2]
[347456055,1735831840410,-500.71400087,0.00019178,2]
[347456057,1735831840419,-500.0,0.00019178,2]
[347456059,1735831840429,-500.0,0.00019178,2]
[347456060,1735831840439,-500.0,0.00019178,2]
[347456061,1735831840448,-500.0,0.00019178,2]
[347456062,1735831840457,-500.0,0.00019178,2]
[347456063,1735831840466,-500.0,0.00019178,2]
[347456064,1735831840476,-500.0,0.00019178,2]
[347456065,1735831840485,-500.0,0.00019178,2]
[347456066,1735831840494,-500.0,0.00019178,2]
[347456067,1735831840503,-500.0,0.00019178,2]
[347456068,1735831840512,-500.0,0.00019178,2]
[347456069,1735831840522,-500.0,0.00019178,2]
[347456070,1735831840532,-500.0,0.00019178,2]
[347456071,1735831840546,-500.0,0.00019178,2]
[347456072,1735831840556,-500.0,0.00019178,2]
[347456073,1735831840567,-228.93834509,0.00019178,2]
[347456074,1735831840575,-500.0,0.00019178,2]
[347456075,1735831840586,-331.28517968,0.00019178,2]
[347456076,1735831840596,-500.0,0.00019178,2]
[347456077,1735831840605,-500.0,0.00019178,2]
[347456078,1735831840615,-500.0,0.00019178,2]
[347456079,1735831840624,-500.0,0.00019178,2]
[347456080,1735831840633,-500.0,0.00019178,2]
[347456081,1735831840642,-500.0,0.00019178,2]
[347456082,1735831840652,-500.0,0.00019178,2]
[347456083,1735831840661,-500.0,0.00019178,2]
[347456084,1735831840671,-500.0,0.00019178,2]
[347456085,1735831840680,-500.0,0.00019178,2]
[347456086,1735831840690,-500.0,0.00019178,2]
[347456087,1735831840701,-501.47716561,0.00019178,2]
[347456088,1735831840711,-500.0,0.00019178,2]
[347456089,1735831840721,-500.0,0.00019178,2]
[347456090,1735831840731,-339.28231209,0.00019178,2]
[347456091,1735831840741,-500.0,0.00019178,2]
[347456092,1735831840751,-500.0,0.00019178,2]
[347456093,1735831840761,-500.0,0.00019178,2]
[347456094,1735831840770,-500.0,0.00019178,2]
[347456095,1735831840780,-500.0,0.00019178,2]
[347456096,1735831840789,-500.0,0.00019178,2]
[347456097,1735831840801,-500.0,0.00019178,2]
[347456098,1735831840810,-502.68230553,0.00019178,2]
[347456099,1735831840819,-500.0,0.00019178,2]
[347456100,1735831840828,-500.0,0.00019178,2]
[347456101,1735831840838,-503.91833629,0.00019178,2]
[347456102,1735831840847,-500.0,0.00019178,2]
[347456103,1735831840857,-500.0,0.00019178,2]
[347456104,1735831840866,-1719.17,0.00019178,2]
[347456105,1735831840876,-500.0,0.00019178,2]
[347456106,1735831840885,-500.0,0.00019178,2]
[347456107,1735831840895,-500.0,0.00019178,2]
[347456108,1735831840905,-1202.04,0.00019178,2]
[347456109,1735831840915,-500.0,0.00019178,2]
[347456110,1735831840924,-500.0,0.00019178,2]
[347456111,1735831840934,-500.0,0.00019178,2]
[347456112,1735831840944,-500.0,0.00019178,2]
[347456113,1735831840953,-500.0,0.00019178,2]
[347456114,1735831840963,-500.0,0.00019178,2]
[347456115,1735831840973,-885.22,0.00019178,2]
[347456116,1735831840983,-500.0,0.00019178,2]
[347456118,1735831840992,-512.17,0.00019178,2]
[347456120,1735831841002,-500.0,0.00019178,2]
[347456121,1735831841011,-500.0,0.00019178,2]
[347456122,1735831841020,-500.0,0.00019178,2]
[347456123,1735831841029,-500.0,0.00019178,2]
[347456124,1735831841038,-500.0,0.00019178,2]
[347456125,1735831841050,-500.0,0.00019178,2]
[347456126,1735831841059,-501.79554441,0.00019178,2]
[347456127,1735831841069,-500.0,0.00019178,2]
[347456128,1735831841078,-1612.95,0.00019178,2]
[347456129,1735831841088,-500.0,0.00019178,2]
[347456130,1735831841098,-500.0,0.00019178,2]
[347456131,1735831841108,-500.0,0.00019178,2]
[347456132,1735831841118,-500.0,0.00019178,2]
[347456133,1735831841128,-551.19,0.00019178,2]
[347456134,1735831841137,-500.0,0.00019178,2]
[347456135,1735831841146,-500.0,0.00019178,2]
[347456136,1735831841156,-547.15,0.00019178,2]
[347456137,1735831841166,-500.0,0.00019178,2]
[347456138,1735831841176,-1119.38,0.00019178,2]
[347456139,1735831841185,-504.84617504,0.00019178,2]
[347456140,1735831841195,-500.0,0.00019178,2]
[347456141,1735831841205,-9374.38,0.00019178,2]
[347456142,1735831841214,-500.0,0.00019178,2]
[347456143,1735831841224,-610.89,0.00019178,2]
[347456144,1735831841234,-500.0,0.00019178,2]
[347456145,1735831841243,-500.0,0.00019178,2]
[347456146,1735831841252,-1846.99,0.00019178,2]
[347456147,1735831841262,-500.0,0.00019178,2]
[347456148,1735831841271,-618.13,0.00019178,2]
[347456149,1735831841280,-500.0,0.00019178,2]
[347456150,1735831841289,-500.0,0.00019178,2]
[347456151,1735831841305,-500.0,0.00019178,2]
[347456152,1735831841317,-500.0,0.00019178,2]
[347456153,1735831841326,-500.0,0.00019178,2]
[347456154,1735831841336,-500.0,0.00019178,2]
[347456155,1735831841345,-500.0,0.00019178,2]
[347456156,1735831841355,-500.0,0.00019178,2]
[347456157,1735831841365,-500.0,0.00019178,2]
[347456158,1735831841375,-500.0,0.00019178,2]
[347456159,1735831841384,-500.0,0.00019178,2]
[347456160,1735831841394,-500.0,0.00019178,2]
[347456161,1735831841404,-500.0,0.00019178,2]
[347456162,1735831841414,-500.0,0.00019178,2]
[347456163,1735831841424,-500.0,0.00019178,2]
[347456164,1735831841433,-500.0,0.00019178,2]
[347456165,1735831841443,-754.88,0.00019178,2]
[347456166,1735831841453,-500.0,0.00019178,2]
[347456167,1735831841463,-500.0,0.00019178,2]
[347456168,1735831841473,-500.0,0.00019178,2]
[347456169,1735831841482,-500.0,0.00019178,2]
[347456170,1735831841491,-404.0675517,0.00019178,2]
[347456171,1735831841501,-500.0,0.00019178,2]
[347456172,1735831841510,-500.0,0.00019178,2]
[347456173,1735831841519,-500.0,0.00019178,2]
[347456174,1735831841528,-500.0,0.00019178,2]
[347456175,1735831841538,-500.0,0.00019178,2]
[347456176,1735831841551,-171.648242,0.00019178,2]
[347456177,1735831841560,-500.0,0.00019452,3]
[347456178,1735831841570,-500.0,0.00019452,3]
[347456179,1735831841579,-500.0,0.00019452,3]
[347456180,1735831841589,-500.0,0.00019452,3]
[347456181,1735831841599,-352.97,0.00019452,3]
[347456182,1735831841608,-643.19,0.00019452,3]
[347456183,1735831841617,-614.06,0.00019452,3]
[347456184,1735831841628,-500.0,0.00019452,3]
[347456185,1735831841637,-160.6,0.00019452,3]
[347456186,1735831841648,-500.0,0.00019452,3]
[347456187,1735831841659,-536.23,0.00019452,3]
[347456188,1735831841668,-151.3,0.00019452,3]
[347456189,1735831841679,-618.43,0.00019452,3]
[347456190,1735831841691,-500.0,0.00019452,3]